bitfinex/quotes_SOLUSD_20250507
["timestamp","ask_amount","ask_price","bid_price","bid_amount"]
[1746597308871,14.51936493,145.66,145.64,19.31818182]
[1746597309077,25.51415736,145.68,145.64,19.31818182]
[1746597309260,14.51936493,145.67,145.64,26.18440761]
[1746597309463,14.51936493,145.68,145.64,26.18440761]
[1746597309882,14.51936493,145.68,145.64,40.70377254]
[1746597310183,152.21936493,145.69,145.64,40.70377254]
[1746597310369,152.21936493,145.69,145.66,14.51936493]
[1746597310370,137.7,145.69,145.66,14.51936493]
[1746597310576,137.7,145.69,145.68,14.51936493]
[1746597310883,137.7,145.73,145.68,14.51936493]
[1746597311175,137.7,145.72,145.7,14.51936493]
[1746597311573,137.7,145.72,145.65,6.4293]
[1746597311772,152.21936493,145.72,145.68,14.51936493]
[1746597313876,159.08195851,145.72,145.68,14.51936493]
[1746597314888,159.08195851,145.72,145.67,14.51936493]
[1746597315066,14.51936493,145.71,145.67,14.51936493]
[1746597315261,14.51936493,145.7,145.66,14.51936493]
[1746597315466,14.51936493,145.68,145.64,35.35554675]
[1746597315794,14.51936493,145.66,145.64,19.31818182]
[1746597315978,14.51936493,145.65,145.64,19.31818182]
[1746597317992,159.08513904,145.65,145.64,19.31818182]
[1746597321084,40.0347879,145.65,145.64,19.31818182]
[1746597330706,25.51542297,145.65,145.64,19.31818182]
[1746597330908,40.0347879,145.65,145.64,19.31818182]
[1746597331610,25.51542297,145.65,145.64,19.31818182]
[1746597331904,40.0347879,145.65,145.64,19.31818182]
[1746597336819,21.38513904,145.65,145.64,19.31818182]
[1746597338420,6.86577411,145.65,145.64,19.31818182]
[1746597338714,21.38513904,145.65,145.64,19.31818182]
[1746597340492,14.51936493,145.65,145.64,19.31818182]
[1746597340897,26.0,145.67,145.64,19.31818182]
[1746597341209,14.51936493,145.65,145.64,19.31818182]
[1746597347526,21.38513904,145.65,145.64,19.31818182]
[1746597361337,40.0347879,145.65,145.64,19.31818182]
[1746597362045,21.38513904,145.65,145.64,19.31818182]
[1746597368254,14.51936493,145.65,145.64,19.31818182]
[1746597369766,9.30446735,145.65,145.64,19.31818182]
[1746597369950,153.86996181,145.66,145.64,19.31818182]
[1746597370141,147.00446735,145.66,145.64,19.31818182]
[1746597370736,137.7,145.66,145.64,26.18438974]
[1746597371344,137.7,145.66,145.64,35.48885709]
[1746597371544,9.30446735,145.68,145.64,35.48885709]
[1746597373464,6.86393958,145.69,145.64,26.18438974]
[1746597373765,14.53284044,145.67,145.64,26.18438974]
[1746597374666,14.53284044,145.67,145.64,19.31818182]
[1746597375162,14.53284044,145.67,145.64,26.18438153]
[1746597378774,14.53284044,145.67,145.64,19.31818182]
[1746597379764,14.53284044,145.67,145.64,26.18431916]
[1746597392307,14.53284044,145.66,145.64,19.31818182]
[1746597393608,14.53284044,145.65,145.64,19.31818182]
[1746597393909,9.30533493,145.65,145.64,19.31818182]
[1746597399821,16.17110904,145.65,145.64,19.31818182]
[1746597401522,9.30533493,145.65,145.64,19.31818182]
[1746597402018,137.7,145.67,145.64,19.31818182]
[1746597402205,9.30533493,145.66,145.64,19.31818182]
[1746597403223,9.30533493,145.65,145.64,19.31818182]
[1746597405619,9.30533493,145.66,145.64,19.31818182]
[1746597406620,9.30533493,145.65,145.64,19.31818182]
[1746597407821,9.30533493,145.66,145.64,19.31818182]
[1746597409622,9.30533493,145.66,145.64,26.18442725]
[1746597413736,9.30533493,145.66,145.64,19.31818182]
[1746597414234,137.7,145.67,145.64,26.18441482]
[1746597414413,147.00533493,145.67,145.64,26.18441482]
[1746597423943,147.00533493,145.67,145.64,19.31818182]
[1746597426545,137.7,145.67,145.64,26.18434165]
[1746597426850,147.00533493,145.67,145.64,26.18434165]
[1746597429549,137.7,145.67,145.64,35.48967658]
[1746597429750,137.7,145.67,145.64,26.18434165]
[1746597429954,9.30533493,145.68,145.64,26.18434165]
[1746597430452,9.30533493,145.67,145.64,26.18434165]
[1746597431150,9.30533493,145.68,145.64,26.18434165]
[1746597431759,9.30533493,145.67,145.64,26.18434165]
[1746597433029,9.30533493,145.68,145.64,26.18434165]
[1746597436854,6.86402115,145.69,145.64,26.18434165]
[1746597437153,9.30533493,145.68,145.64,26.18434165]
[1746597438954,6.86402115,145.69,145.64,35.48967658]
[1746597439154,16.16935608,145.69,145.64,35.48967658]
[1746597440156,9.30533493,145.68,145.64,26.18434165]
[1746597446360,9.30533493,145.68,145.64,35.48967658]
[1746597446865,6.86391254,145.69,145.64,35.48967658]
[1746597447051,9.30533493,145.68,145.64,35.48967658]
[1746597447867,9.30533493,145.68,145.64,26.18434165]
[1746597448584,9.30533493,145.67,145.64,19.31818182]
[1746597448746,9.30533493,145.66,145.64,19.31818182]
[1746597449046,9.30533493,145.67,145.64,19.31818182]
[1746597455476,144.56405248,145.69,145.64,26.18433213]
[1746597455764,137.7,145.69,145.66,9.30533493]
[1746597456971,137.7,145.69,145.66,16.17030151]
[1746597459776,137.7,145.69,145.65,16.17110904]
[1746597461583,137.7,145.69,145.65,16.15110904]
[1746597463086,147.00533493,145.69,145.65,16.15110904]
[1746597465884,137.7,145.69,145.65,16.15110904]
[1746597466181,147.00533493,145.69,145.65,16.15110904]
[1746597466802,9.30533493,145.68,145.64,35.48955063]
[1746597467089,9.30533493,145.66,145.64,26.18438898]
[1746597468572,9.30533493,145.67,145.64,26.18438898]
[1746597469490,144.56395032,145.69,145.64,26.18438898]
[1746597469491,137.7,145.69,145.64,35.48972391]
[1746597469692,147.00533493,145.69,145.65,9.30533493]
[1746597472293,147.00533493,145.69,145.65,16.17077771]
[1746597472499,9.30533493,145.68,145.65,6.86544278]
[1746597473296,9.30533493,145.67,145.64,26.18437946]
[1746597473497,9.30533493,145.68,145.64,35.48971439]
[1746597479899,1.6597,145.72,145.67,9.30533493]
[1746597480097,10.96503493,145.72,145.68,16.16946106]
[1746597480604,1.6597,145.72,145.68,16.16946106]
[1746597480792,1.6597,145.72,145.69,9.30533493]
[1746597480986,24.27175324,145.76,145.71,9.30533493]
[1746597481188,9.30533493,145.74,145.7,9.30533493]
[1746597482204,147.00533493,145.75,145.71,9.30533493]
[1746597482606,9.30533493,145.75,145.71,9.30533493]
[1746597483409,9.30533493,145.75,145.71,16.16796512]
[1746597485287,9.30533493,145.74,145.71,6.86263019]
[1746597485910,9.30533493,145.74,145.7,16.16855602]
[1746597490016,16.16689064,145.74,145.7,9.30533493]
[1746597490514,9.30533493,145.73,145.7,9.30533493]
[1746597490713,9.30533493,145.73,145.7,16.16872822]
[1746597492011,16.16689064,145.74,145.7,16.16872822]
[1746597492618,9.30533493,145.74,145.7,16.16872822]
[1746597492802,9.30533493,145.75,145.71,9.30533493]
[1746597493719,9.30533493,145.75,145.71,16.1681709]
[1746597496797,9.30533493,145.74,145.7,9.30533493]
[1746597498825,9.30533493,145.74,145.7,16.16830471]
[1746597499006,146.07156037,145.76,145.7,16.16830471]
[1746597499312,9.30533493,145.74,145.7,16.16830471]
[1746597507923,9.30533493,145.74,145.7,6.86296978]
[1746597508103,9.30533493,145.73,145.7,6.86296978]
[1746597511230,9.30533493,145.73,145.69,16.16904713]
[1746597511417,9.25647104,145.73,145.69,16.16904713]
[1746597512522,9.30533493,145.72,145.68,16.16952396]
[1746597512729,9.30533493,145.71,145.67,16.16982534]
[1746597520545,144.56229728,145.73,145.67,16.16982534]
[1746597520739,9.30533493,145.71,145.67,16.16982534]
[1746597522353,9.30533493,145.72,145.67,16.16982534]
[1746597525159,9.30533493,145.71,145.67,16.16982534]
[1746597526160,9.30533493,145.72,145.68,9.30533493]
[1746597528656,9.30533493,145.72,145.68,16.16941538]
[1746597529352,153.86763221,145.73,145.68,16.16941538]
[1746597529554,9.30533493,145.72,145.68,16.16941538]
[1746597529737,9.30533493,145.72,145.68,6.86408045]
[1746597530161,9.30533493,145.72,145.68,9.30533493]
[1746597530456,147.00533493,145.73,145.68,9.30533493]
[1746597533157,147.00533493,145.73,145.69,9.30533493]
[1746597536161,147.00533493,145.73,145.69,16.16901652]
[1746597538363,137.7,145.73,145.69,16.16901652]
[1746597538553,153.86741565,145.73,145.69,16.16901652]
[1746597538762,153.86741565,145.73,145.69,9.30533493]
[1746597539064,153.86741565,145.73,145.69,16.16916027]
[1746597540771,153.86741565,145.73,145.69,9.30533493]
[1746597541067,153.86741565,145.73,145.68,16.16950304]
[1746597542176,153.86741565,145.73,145.69,9.30533493]
[1746597544568,153.86741565,145.73,145.69,16.16921124]
[1746597545371,147.00533493,145.73,145.69,16.16921124]
[1746597545553,153.86759486,145.73,145.69,16.16911823]
[1746597548570,137.7,145.73,145.69,16.16911823]
[1746597549552,137.7,145.73,145.71,9.30533493]
[1746597549875,137.7,145.73,145.69,6.8637833]
[1746597549876,137.7,145.73,145.72,9.30533493]
[1746597550873,137.7,145.73,145.72,16.16781091]
[1746597552878,174.51613493,145.76,145.72,16.16781091]
[1746597553092,165.2108,145.76,145.72,16.16781091]
[1746597553278,174.51613493,145.76,145.72,16.16781091]
[1746597555079,139.2108,145.76,145.73,9.30533493]
[1746597555279,139.2108,145.76,145.73,16.16708013]
[1746597562582,148.51613493,145.76,145.73,16.16708013]
[1746597563089,148.51613493,145.76,145.72,9.30533493]
[1746597563292,137.7,145.76,145.72,9.30533493]
[1746597563454,147.00533493,145.76,145.72,9.30533493]
[1746597564286,147.00533493,145.76,145.68,24.02526084]
[1746597564463,147.00533493,145.76,145.72,9.30533493]
[1746597564661,137.7,145.76,145.73,9.30533493]
[1746597565600,137.7,145.76,145.74,6.86153423]
[1746597565952,137.7,145.76,145.73,16.16714729]
[1746597568294,137.7,145.76,145.73,6.86181236]
[1746597576196,9.30533493,145.75,145.68,24.02503335]
[1746597576368,147.00533493,145.75,145.7,9.30533493]
[1746597576568,137.7,145.75,145.71,9.30533493]
[1746597576871,137.7,145.75,145.72,9.30533493]
[1746597577996,137.7,145.75,145.71,9.30533493]
[1746597578369,147.00533493,145.75,145.7,9.30533493]
[1746597579793,147.00533493,145.75,145.7,16.16875291]
[1746597580499,147.00533493,145.75,145.71,9.30533493]
[1746597581296,137.7,145.75,145.71,9.30533493]
[1746597581995,147.00533493,145.75,145.68,24.02503335]
[1746597582177,147.00533493,145.75,145.71,9.30533493]
[1746597584189,147.00533493,145.75,145.71,16.16809868]
[1746597586094,137.7,145.75,145.71,16.16809868]
[1746597588396,144.5610773,145.75,145.71,16.16809868]
[1746597588587,147.00533493,145.75,145.71,6.86276375]
[1746597590501,147.00533493,145.75,145.71,9.30533493]
[1746597593408,147.00533493,145.75,145.71,16.16783122]
[1746597598307,137.7,145.75,145.71,16.16783122]
[1746597600513,147.00533493,145.75,145.71,16.16783122]
[1746597602412,147.00533493,145.75,145.68,17.16067311]
[1746597602630,147.00533493,145.75,145.71,9.30533493]
[1746597604408,137.7,145.75,145.71,16.16799216]
[1746597605215,137.7,145.75,145.71,6.86265723]
[1746597605410,137.7,145.75,145.73,9.30533493]
[1746597606012,137.7,145.75,145.71,6.86265723]
[1746597606013,137.7,145.75,145.72,9.30533493]
[1746597607215,147.00533493,145.75,145.71,9.30533493]
[1746597607590,137.7,145.75,145.71,9.30533493]
[1746597608214,137.7,145.75,145.72,9.30533493]
[1746597608416,137.7,145.75,145.73,9.30533493]
[1746597608593,137.7,145.75,145.74,9.30533493]
[1746597608795,137.7,145.78,145.74,9.30533493]
[1746597609008,137.7,145.78,145.74,16.16668107]
[1746597609308,153.86498856,145.78,145.74,16.16668107]
[1746597609821,9.30533493,145.76,145.71,9.30533493]
[1746597610008,9.30533493,145.75,145.71,9.30533493]
[1746597610207,9.30533493,145.75,145.7,6.86341798]
[1746597610526,9.30533493,145.75,145.71,9.30533493]
[1746597610700,9.30533493,145.76,145.71,9.30533493]
[1746597610896,9.30533493,145.76,145.72,6.86247598]
[1746597612033,9.30533493,145.75,145.7,6.86341798]
[1746597612207,9.30533493,145.75,145.71,9.30533493]
[1746597613226,9.30533493,145.75,145.71,16.16805467]
[1746597615105,9.30533493,145.72,145.67,6.86483146]
[1746597615303,9.30533493,145.7,145.67,6.86483146]
[1746597616429,9.30533493,145.71,145.67,16.17016639]
[1746597616812,9.30533493,145.7,145.67,6.86483146]
[1746597619221,147.00533493,145.71,145.67,9.30533493]
[1746597621524,147.00533493,145.71,145.67,16.16986989]
[1746597622915,137.7,145.71,145.69,9.30533493]
[1746597623626,137.7,145.71,145.68,9.30533493]
[1746597624128,137.7,145.71,145.69,9.30533493]
[1746597625426,137.7,145.71,145.69,16.16915365]
[1746597627329,137.7,145.71,145.69,6.86381872]
[1746597628831,137.7,145.71,145.68,16.16955889]
[1746597632531,137.7,145.71,145.7,9.30533493]
[1746597632830,137.7,145.74,145.7,16.16875291]
[1746597633020,137.7,145.74,145.73,9.30533493]
[1746597633733,137.7,145.74,145.73,14.51469515]
[1746597634232,137.7,145.77,145.73,21.37639189]
[1746597634421,137.7,145.77,145.74,14.51469515]
[1746597635119,152.21469515,145.77,145.73,21.37639189]
[1746597635658,14.51469515,145.75,145.71,14.51469515]
[1746597635810,14.51469515,145.74,145.7,14.51469515]
[1746597636449,14.51469515,145.74,145.7,21.37787324]
[1746597636613,14.51469515,145.73,145.67,31.88]
[1746597636812,14.51469515,145.72,145.68,14.51469515]
[1746597637833,14.51469515,145.72,145.68,21.37885916]
[1746597638034,152.21469515,145.73,145.68,21.37885916]
[1746597638234,152.21469515,145.73,145.69,14.51469515]
[1746597638737,159.0767815,145.73,145.69,14.51469515]
[1746597638922,14.51469515,145.72,145.68,21.37885916]
[1746597640546,14.51469515,145.72,145.67,14.51469515]
[1746597640547,152.21469515,145.71,145.67,14.51469515]
[1746597641836,152.21469515,145.71,145.64,19.31818182]
[1746597642042,14.51469515,145.68,145.64,33.83287697]
[1746597642239,14.51469515,145.68,145.64,40.69903394]
[1746597642418,156.34964886,145.7,145.64,40.69903394]
[1746597642419,14.51469515,145.69,145.65,14.51469515]
[1746597642920,137.7,145.7,145.67,14.51469515]
[1746597643123,137.7,145.7,145.68,14.51469515]
[1746597644146,5.10079497,145.69,145.68,21.37905539]
[1746597646332,137.7,145.7,145.68,21.37905539]
[1746597646521,137.7,145.7,145.69,14.51469515]
[1746597648344,1.6352,145.74,145.7,6.86341798]
[1746597648345,139.3352,145.74,145.7,6.86341798]
[1746597648823,139.3352,145.74,145.71,14.51469515]
[1746597649418,137.7,145.74,145.72,14.51469515]
[1746597650767,137.7,145.74,145.72,21.37710465]
[1746597651415,178.21469515,145.77,145.73,14.51469515]
[1746597652945,178.21469515,145.77,145.72,21.37710465]
[1746597653165,14.51469515,145.76,145.71,21.37754441]
[1746597653342,14.51469515,145.75,145.71,14.51469515]
[1746597653829,14.51469515,145.76,145.71,21.3775908]
[1746597654033,33.16434401,145.76,145.71,21.3775908]
[1746597654551,33.16434401,145.76,145.71,14.51469515]
[1746597654852,137.7,145.75,145.71,21.37753748]
[1746597655658,137.7,145.75,145.72,14.51469515]
[1746597656030,137.7,145.75,145.73,14.51469515]
[1746597657653,137.7,145.75,145.73,21.3763699]
[1746597659254,137.7,145.75,145.73,6.86167475]
[1746597660052,137.7,145.75,145.72,21.37697101]
[1746597660561,137.7,145.75,145.7,14.51469515]
[1746597660562,14.51469515,145.74,145.7,14.51469515]
[1746597660749,14.51469515,145.74,145.69,14.51469515]
[1746597661057,14.51469515,145.72,145.68,21.37905539]
[1746597661546,21.37718607,145.72,145.68,14.51469515]
[1746597661738,14.51469515,145.72,145.68,21.37897969]
[1746597662238,14.51469515,145.73,145.69,14.51469515]
[1746597663363,14.51469515,145.73,145.69,21.37828757]
[1746597663856,5.1014411,145.72,145.69,21.37828757]
[1746597664640,5.1014411,145.72,145.68,21.37895521]
[1746597664836,5.1014411,145.71,145.68,21.37895521]
[1746597665254,5.1014411,145.71,145.69,14.51469515]
[1746597665670,5.1014411,145.71,145.69,21.37835595]
[1746597665861,5.1014411,145.7,145.69,21.37835595]
[1746597667372,5.1014411,145.7,145.68,21.3788702]
[1746597668446,5.1014411,145.69,145.68,21.3788702]
[1746597676154,139.2466,145.73,145.68,21.3788702]
[1746597676364,139.2466,145.73,145.7,14.51469515]
[1746597678269,137.7,145.73,145.72,14.51469515]
[1746597678468,5.10559611,145.73,145.72,14.51469515]
[1746597679841,33.16434401,145.79,145.72,14.51469515]
[1746597680045,137.7,145.78,145.75,14.51469515]
[1746597681666,137.7,145.78,145.74,14.51469515]
[1746597682050,137.7,145.78,145.75,6.86106346]
[1746597682663,152.21469515,145.78,145.74,14.51469515]
[1746597683259,5.10367281,145.77,145.74,14.51469515]
[1746597683771,5.10367281,145.77,145.74,21.3760382]
[1746597684358,5.10367281,145.76,145.74,21.3760382]
[1746597685369,5.10367281,145.75,145.74,21.3760382]
[1746597687750,5.10367281,145.75,145.74,51.87073335]
[1746597688069,5.10367281,145.75,145.74,67.81073335]
[1746597688672,139.2111,145.81,145.74,84.96456894]
[1746597688874,139.2111,145.81,145.77,14.51469515]
[1746597689374,153.72579515,145.81,145.78,6.85965152]
[1746597689579,14.51469515,145.8,145.76,14.51469515]
[1746597689763,14.51469515,145.78,145.74,37.31603478]
[1746597689972,14.51469515,145.78,145.74,21.37603478]
[1746597690175,33.16434401,145.79,145.74,21.37603478]
[1746597690701,14.51469515,145.78,145.74,21.37621528]
[1746597691278,14.51469515,145.78,145.74,14.51469515]
[1746597691481,14.51469515,145.77,145.73,14.51469515]
[1746597691882,21.37464272,145.78,145.74,14.51469515]
[1746597692057,14.51469515,145.78,145.74,14.51469515]
[1746597692256,21.37435443,145.78,145.74,14.51469515]
[1746597692882,21.37435443,145.78,145.73,14.51469515]
[1746597693256,14.51469515,145.78,145.74,14.51469515]
[1746597693558,14.51469515,145.78,145.74,21.37616288]
[1746597693960,152.21469515,145.78,145.74,21.37616288]
[1746597695773,159.0743906,145.78,145.74,21.37616288]
[1746597696158,152.21469515,145.78,145.74,21.37616288]
[1746597696878,137.7,145.78,145.74,21.37616288]
[1746597697278,137.7,145.78,145.75,14.51469515]
[1746597697660,137.7,145.78,145.75,21.37540953]
[1746597697860,137.7,145.78,145.72,17.15603082]
[1746597697861,137.7,145.78,145.74,21.37602226]
[1746597698074,14.51469515,145.77,145.73,21.37650122]
[1746597698384,152.21469515,145.78,145.73,21.37650122]
[1746597699188,152.21469515,145.78,145.74,14.51469515]
[1746597700173,137.7,145.78,145.75,6.86106346]
[1746597702482,137.7,145.78,145.74,14.51469515]
[1746597702483,137.7,145.78,145.74,21.37602543]
[1746597706284,137.7,145.78,145.75,14.51469515]
[1746597708084,137.7,145.78,145.77,14.51469515]
[1746597708286,172.37544401,145.81,145.77,14.51469515]
[1746597708472,172.37544401,145.81,145.78,6.85965152]
[1746597708877,172.32955104,145.81,145.78,6.85965152]
[1746597709686,152.21469515,145.81,145.78,6.85965152]
[1746597709989,137.7,145.81,145.78,21.37434667]
[1746597710290,137.7,145.81,145.79,14.51469515]
[1746597710671,137.7,145.81,145.8,6.85871056]
[1746597710870,137.7,145.81,145.79,21.37372297]
[1746597711387,137.7,145.86,145.8,14.51469515]
[1746597711589,137.7,145.85,145.82,14.51469515]
[1746597711968,137.7,145.85,145.81,14.51469515]
[1746597712791,137.7,145.85,145.82,6.85776985]
[1746597713384,137.7,145.85,145.81,21.37275086]
[1746597714393,137.7,145.85,145.82,14.51469515]
[1746597714899,137.7,145.85,145.82,21.37227089]
[1746597719292,34.70494401,145.88,145.83,14.51469515]
[1746597719997,14.51469515,145.87,145.84,6.8568294]
[1746597720494,14.51469515,145.87,145.83,14.51469515]
[1746597720684,14.51469515,145.86,145.83,6.85713859]
[1746597721983,20.19024886,145.88,145.83,21.37183374]
[1746597722187,14.51469515,145.87,145.83,21.37183374]
[1746597722384,20.19024886,145.88,145.83,21.37183374]
[1746597722695,144.5531867,145.92,145.86,14.51469515]
[1746597722898,14.51469515,145.9,145.86,14.51469515]
[1746597723296,14.51469515,145.91,145.86,14.51469515]
[1746597723681,14.51469515,145.91,145.87,14.51469515]
[1746597723879,137.7,145.92,145.87,21.36988595]
[1746597724094,14.51469515,145.91,145.87,21.36988595]
[1746597724400,152.21469515,145.92,145.88,14.51469515]
[1746597725085,14.51469515,145.91,145.87,21.36988595]
[1746597725602,14.51469515,145.91,145.87,6.8551908]
[1746597729904,14.51469515,145.9,145.87,6.8551908]
[1746597730305,14.51469515,145.9,145.86,21.37042119]
[1746597730693,14.51469515,145.89,145.85,21.37101189]
[1746597733895,14.51469515,145.89,145.85,6.85631674]
[1746597734095,14.51469515,145.89,145.84,21.37131781]
[1746597734096,14.51469515,145.88,145.84,21.37131781]
[1746597735310,21.36970865,145.88,145.84,21.37131781]
[1746597735497,14.51469515,145.86,145.83,22.8371547]
[1746597735719,14.51469515,145.86,145.83,6.8571547]
[1746597736209,14.51469515,145.87,145.83,21.37184985]
[1746597738530,33.16434401,145.88,145.84,14.51469515]
[1746597740422,33.16434401,145.88,145.84,21.37116201]
[1746597740618,18.64964886,145.88,145.84,21.37116201]
[1746597740814,33.16434401,145.88,145.84,21.37116201]
[1746597741326,14.51469515,145.87,145.84,6.85646686]
[1746597746331,33.16434401,145.88,145.84,14.51469515]
[1746597747618,18.64964886,145.88,145.84,21.37128578]
[1746597747810,139.3422,145.89,145.85,14.51469515]
[1746597748012,137.7,145.89,145.86,14.51469515]
[1746597748721,137.7,145.89,145.85,14.51469515]
[1746597749406,152.21469515,145.89,145.85,14.51469515]
[1746597750024,152.21469515,145.89,145.85,21.37069864]
[1746597750425,152.21469515,145.89,145.85,6.85600349]
[1746597751825,137.7,145.89,145.85,21.37069864]
[1746597752010,137.7,145.89,145.86,14.51469515]
[1746597753122,152.21469515,145.92,145.88,14.51469515]
[1746597753309,137.7,145.92,145.88,14.51469515]
[1746597754134,137.7,145.92,145.89,6.8544794]
[1746597754509,152.21469515,145.92,145.89,6.8544794]
[1746597756436,137.7,145.92,145.89,21.36917455]
[1746597766245,152.21469515,145.92,145.89,21.36917455]
[1746597766542,152.21469515,145.92,145.89,6.8544794]
[1746597768242,14.51469515,145.91,145.87,6.85503609]
[1746597768438,14.51469515,145.89,145.86,6.85567937]
[1746597768748,14.51469515,145.88,145.85,6.85618021]
[1746597768924,14.51469515,145.87,145.84,6.85673304]
[1746597769119,14.51469515,145.87,145.83,21.37179724]
[1746597769352,14.51469515,145.87,145.83,6.85710209]
[1746597770143,5.11316463,145.86,145.83,6.85710209]
[1746597770842,5.11316463,145.85,145.83,6.85710209]
[1746597771036,5.11316463,145.85,145.83,21.37179724]
[1746597771747,5.11316463,145.84,145.83,21.37179724]
[1746597774949,152.21469515,145.89,145.83,21.37179724]
[1746597775154,152.21469515,145.89,145.85,14.51469515]
[1746597776950,40.01943618,145.88,145.83,21.37179724]
[1746597778457,33.16434401,145.88,145.84,21.37146523]
[1746597780149,14.51469515,145.88,145.84,21.37146523]
[1746597780451,152.21469515,145.89,145.84,21.37146523]
[1746597781653,137.7,145.89,145.84,21.37146523]
[1746597781835,152.21469515,145.89,145.84,21.37146523]
[1746597782555,152.21469515,145.89,145.85,14.51469515]
[1746597783050,137.7,145.93,145.88,14.51469515]
[1746597783251,137.7,145.93,145.89,14.51469515]
[1746597783252,152.21469515,145.93,145.89,14.51469515]
[1746597783948,137.7,145.93,145.9,14.51469515]
[1746597785458,137.7,145.93,145.9,21.36853796]
[1746597786053,152.21469515,145.93,145.88,6.85494927]
[1746597786261,152.21469515,145.93,145.89,14.51469515]
[1746597787851,152.21469515,145.93,145.89,21.36900676]
[1746597788059,152.21469515,145.93,145.89,6.85431161]
[1746597789161,14.51469515,145.92,145.88,6.85479653]
[1746597790255,14.51469515,145.9,145.87,6.85526753]
[1746597791354,14.51469515,145.91,145.87,6.85526753]
[1746597792052,18.64964886,145.92,145.87,14.51469515]
[1746597792265,14.51469515,145.91,145.87,14.51469515]
[1746597793551,14.51469515,145.91,145.87,21.36975924]
[1746597794161,18.64964886,145.92,145.87,21.36975924]
[1746597794361,14.51469515,145.91,145.87,21.36975924]
[1746597794550,18.64964886,145.92,145.87,21.36975924]
[1746597794849,33.16434401,145.92,145.88,14.51469515]
[1746597795782,137.7,145.93,145.88,21.36950764]
[1746597796068,137.7,145.93,145.89,14.51469515]
[1746597796658,137.7,145.93,145.9,14.51469515]
[1746597797965,137.7,145.93,145.9,21.36858649]
[1746597799967,18.64964886,145.95,145.91,14.51469515]
[1746597800267,14.51469515,145.94,145.9,21.36858649]
[1746597804776,14.51469515,145.94,145.9,6.85389134]
[1746597805371,14.51469515,145.93,145.9,6.85389134]
[1746597805775,14.51469515,145.93,145.89,6.8543272]
[1746597805965,14.51469515,145.92,145.89,6.8543272]
[1746597806561,14.51469515,145.93,145.89,6.8543272]
[1746597808881,14.51469515,145.92,145.89,6.8543272]
[1746597814680,14.51469515,145.93,145.89,14.51469515]
[1746597815881,6.85234338,145.94,145.89,21.36892531]
[1746597816057,14.51469515,145.93,145.89,21.36892531]
[1746597817271,137.7,145.95,145.92,14.51469515]
[1746597817782,137.7,145.95,145.91,14.51469515]
[1746597818182,152.21469515,145.95,145.91,21.36784125]
[1746597818683,152.21469515,145.95,145.91,6.8531461]
[1746597818982,152.21469515,145.95,145.91,21.36784125]
[1746597827184,137.7,145.95,145.91,21.36784125]
[1746597827579,152.21469515,145.95,145.91,21.36784125]
[1746597827895,137.7,145.95,145.91,21.36784125]
[1746597828194,137.7,145.95,145.92,14.51469515]
[1746597828496,14.51469515,145.96,145.92,14.51469515]
[1746597828883,14.51469515,145.96,145.91,21.36784125]
[1746597830802,51.50045036,145.97,145.91,21.36784125]
[1746597830980,14.51469515,145.96,145.91,21.36784125]
[1746597831689,9.26645866,145.96,145.91,9.26645866]
[1746597833502,51.50045036,145.97,145.92,6.85307017]
[1746597833800,9.26645866,145.96,145.92,6.85307017]
[1746597834307,9.26645866,145.95,145.92,6.85307017]
[1746597838074,9.26645866,145.95,145.91,6.8533303]
[1746597838280,9.26645866,145.94,145.91,6.8533303]
[1746597842121,9.26645866,145.95,145.91,6.8533303]
[1746597842616,9.26645866,145.95,145.91,9.26645866]
[1746597842788,9.26645866,145.95,145.89,17.13522281]
[1746597842789,9.26645866,145.96,145.92,9.26645866]
[1746597842986,9.26645866,145.97,145.92,9.26645866]
[1746597844413,139.2277,145.98,145.92,9.26645866]
[1746597844414,9.26645866,145.96,145.92,9.26645866]
[1746597844912,9.26645866,145.97,145.93,9.26645866]
[1746597845416,137.7,145.98,145.95,9.26645866]
[1746597846315,137.7,145.98,145.94,9.26645866]
[1746597847095,137.7,145.98,145.95,6.85166152]
[1746597847312,146.96645866,145.98,145.95,6.85166152]
[1746597847512,9.26645866,145.96,145.92,9.26645866]
[1746597848816,9.26645866,145.97,145.93,6.85238312]
[1746597849420,9.26645866,145.97,145.93,16.11884178]
[1746597849795,14.47603367,145.97,145.93,21.32841679]
[1746597851023,144.55027412,145.98,145.93,21.32841679]
[1746597851225,137.7,145.98,145.94,14.47603367]
[1746597851522,152.17603367,145.98,145.94,14.47603367]
[1746597852324,152.17603367,145.98,145.93,14.47603367]
[1746597855326,152.17603367,145.98,145.94,6.85213101]
[1746597856824,14.47603367,145.97,145.94,6.85213101]
[1746597857209,152.17603367,145.98,145.94,6.85213101]
[1746597862325,14.47603367,145.97,145.94,6.85213101]
[1746597863824,137.7,145.98,145.94,21.32816468]
[1746597864010,152.17603367,145.98,145.94,21.32816468]